[Event "*** Titled Tuesday 3|2 Blitz"]
[Site "Chess.com"]
[Date "2014.12.30"]
[Round "5"]
[White "grandmastergauri"]
[Black "BeerLag"]
[Result "1-0"]
[WhiteElo "2262"]
[BlackElo "2156"]
[TimeControl "180+2"]
[EndTime "12:02:35 PST"]
[Termination "grandmastergauri won by resignation"]

1. e4 {[%clk 0:03:00]} 1... c5 {[%clk 0:02:58.5]} 2. Nc3 {[%clk 0:03:00.2]} 2...
Nc6 {[%clk 0:02:57.5]} 3. Bb5 {[%clk 0:03:01.2]} 3... g6 {[%clk 0:02:57.3]} 4.
Bxc6 {[%clk 0:03:01]} 4... dxc6 {[%clk 0:02:59.2]} 5. d3 {[%clk 0:03:02.2]} 5...
Bg7 {[%clk 0:02:59.4]} 6. Nge2 {[%clk 0:02:59.3]} 6... e5 {[%clk 0:02:55.9]} 7.
O-O {[%clk 0:02:59.2]} 7... Ne7 {[%clk 0:02:56]} 8. f4 {[%clk 0:03:00.4]} 8...
O-O {[%clk 0:02:56.7]} 9. fxe5 {[%clk 0:03:01.7]} 9... Bxe5 {[%clk 0:02:57.4]}
10. Bh6 {[%clk 0:03:03.3]} 10... Re8 {[%clk 0:02:54.4]} 11. Nf4 {[%clk
0:02:44.9]} 11... c4 {[%clk 0:02:21.6]} 12. Qf3 {[%clk 0:02:44.3]} 12... f6
{[%clk 0:02:02.4]} 13. Rad1 {[%clk 0:02:19.3]} 13... Qb6+ {[%clk 0:01:59.1]} 14.
Kh1 {[%clk 0:02:14.5]} 14... Qxb2 {[%clk 0:01:58.3]} 15. d4 {[%clk 0:02:15.4]}
15... Bc7 {[%clk 0:01:45.8]} 16. Nxg6 {[%clk 0:01:59.8]} 16... f5 {[%clk
0:01:11.3]} 17. Nxe7+ {[%clk 0:01:54.6]} 17... Rxe7 {[%clk 0:01:13.2]} 18. exf5
{[%clk 0:01:56.1]} 18... Rf7 {[%clk 0:00:54.8]} 19. Qg4+ {[%clk 0:01:37.9]}
19... Kh8 {[%clk 0:00:55.9]} 20. Qh5 {[%clk 0:01:39.1]} 20... Kg8 {[%clk
0:00:49.1]} 21. Ne4 {[%clk 0:01:34.4]} 21... Bd8 {[%clk 0:00:47.6]} 22. Nd6
{[%clk 0:01:33.5]} 1-0

[Event "*** Titled Tuesday 3|2 Blitz"]
[Site "Chess.com"]
[Date "2014.12.30"]
[Round "5"]
[White "ItalianMachine"]
[Black "WanderingPuppet"]
[Result "1-0"]
[WhiteElo "2168"]
[BlackElo "2052"]
[TimeControl "180+2"]
[EndTime "12:03:28 PST"]
[Termination "ItalianMachine won by resignation"]

1. e4 {[%clk 0:03:00]} 1... c5 {[%clk 0:02:57.2]} 2. d4 {[%clk 0:02:59.9]} 2...
cxd4 {[%clk 0:02:57.8]} 3. c3 {[%clk 0:02:52.6]} 3... dxc3 {[%clk 0:02:58.9]} 4.
Nxc3 {[%clk 0:02:53.7]} 4... Nc6 {[%clk 0:03:00.6]} 5. Nf3 {[%clk 0:02:51.1]}
5... e6 {[%clk 0:03:02.1]} 6. Bc4 {[%clk 0:02:48.6]} 6... a6 {[%clk 0:03:03.5]}
7. O-O {[%clk 0:02:45.4]} 7... b5 {[%clk 0:03:05.1]} 8. Bb3 {[%clk 0:02:45.9]}
8... Be7 {[%clk 0:03:05.8]} 9. e5 {[%clk 0:02:46.3]} 9... Nh6 {[%clk 0:03:06.5]}
10. Bxh6 {[%clk 0:02:41.3]} 10... gxh6 {[%clk 0:03:08.4]} 11. Ne4 {[%clk
0:02:40.4]} 11... Qc7 {[%clk 0:03:05.3]} 12. Rc1 {[%clk 0:02:40.1]} 12... Bb7
{[%clk 0:03:01.4]} 13. Qd2 {[%clk 0:02:35.5]} 13... Rd8 {[%clk 0:02:48.5]} 14.
Qxh6 {[%clk 0:02:32.6]} 14... Qb8 {[%clk 0:02:49.5]} 15. Qg7 {[%clk 0:02:07.3]}
15... Rf8 {[%clk 0:02:50.2]} 16. Nf6+ {[%clk 0:01:31.3]} 16... Bxf6 {[%clk
0:02:50.2]} 17. Qxf6 {[%clk 0:01:28.3]} 17... Na5 {[%clk 0:02:33.3]} 18. Ng5
{[%clk 0:01:16.6]} 18... Qa8 {[%clk 0:01:32.2]} 19. f3 {[%clk 0:01:07]} 19...
Qa7+ {[%clk 0:01:24.2]} 20. Kh1 {[%clk 0:01:06.1]} 20... Qd4 {[%clk 0:00:57.4]}
21. Nxh7 {[%clk 0:01:00]} 21... Qxb2 {[%clk 0:00:54]} 22. Nxf8 {[%clk
0:00:57.6]} 22... d6 {[%clk 0:00:49.7]} 23. Rc7 {[%clk 0:00:44.1]} 1-0

[Event "*** Titled Tuesday 3|2 Blitz"]
[Site "Chess.com"]
[Date "2014.12.30"]
[Round "5"]
[White "Imre91"]
[Black "David_Klein"]
[Result "1-0"]
[WhiteElo "2538"]
[BlackElo "2359"]
[TimeControl "180+2"]
[EndTime "12:04:02 PST"]
[Termination "Imre91 won by resignation"]

1. d4 {[%clk 0:03:00]} 1... g6 {[%clk 0:02:57.6]} 2. h4 {[%clk 0:03:00.2]} 2...
Nf6 {[%clk 0:02:57.9]} 3. Bg5 {[%clk 0:02:59.6]} 3... Ne4 {[%clk 0:02:55.1]} 4.
Bf4 {[%clk 0:03:00.3]} 4... h6 {[%clk 0:02:51.6]} 5. Nd2 {[%clk 0:03:00.4]} 5...
Nxd2 {[%clk 0:02:52.3]} 6. Qxd2 {[%clk 0:03:02.1]} 6... Bg7 {[%clk 0:02:53.7]}
7. Nf3 {[%clk 0:03:02.9]} 7... d6 {[%clk 0:02:53.7]} 8. c3 {[%clk 0:03:03.6]}
8... Nd7 {[%clk 0:02:49]} 9. Rd1 {[%clk 0:03:02.9]} 9... Nf6 {[%clk 0:02:49.1]}
10. g3 {[%clk 0:03:02.7]} 10... Ne4 {[%clk 0:02:43.4]} 11. Qe3 {[%clk 0:03:03]}
11... Nf6 {[%clk 0:02:39.6]} 12. Qc1 {[%clk 0:03:03.1]} 12... Be6 {[%clk
0:02:32.6]} 13. b3 {[%clk 0:03:02.8]} 13... a5 {[%clk 0:02:31.9]} 14. c4 {[%clk
0:03:01.4]} 14... a4 {[%clk 0:02:30.9]} 15. d5 {[%clk 0:03:01.1]} 15... Bg4
{[%clk 0:02:08.5]} 16. b4 {[%clk 0:02:59.2]} 16... Ne4 {[%clk 0:02:08]} 17. Nd4
{[%clk 0:02:51.2]} 17... c5 {[%clk 0:01:51.1]} 18. dxc6 {[%clk 0:02:51.5]} 18...
Qb6 {[%clk 0:01:50.9]} 19. Bg2 {[%clk 0:02:38.4]} 19... Bxd4 {[%clk 0:01:31.8]}
20. Bxe4 {[%clk 0:02:37.6]} 20... Bxf2+ {[%clk 0:01:32.6]} 21. Kf1 {[%clk
0:02:38.7]} 21... bxc6 {[%clk 0:01:33]} 22. c5 {[%clk 0:02:38.4]} 22... Qb5
{[%clk 0:01:22.9]} 23. Bd3 {[%clk 0:02:38.9]} 23... Qxb4 {[%clk 0:01:18.6]} 24.
Kxf2 {[%clk 0:02:40]} 24... d5 {[%clk 0:01:15]} 25. a3 {[%clk 0:02:31]} 25...
Qa5 {[%clk 0:00:54.4]} 26. Bxh6 {[%clk 0:02:29.5]} 26... e5 {[%clk 0:00:52.8]}
27. Bg7 {[%clk 0:02:29.9]} 27... Rh5 {[%clk 0:00:45.3]} 28. Qe3 {[%clk
0:02:22.6]} 28... e4 {[%clk 0:00:43.8]} 29. Kg2 {[%clk 0:02:11.6]} 29... O-O-O
{[%clk 0:00:19.7]} 30. Bc2 {[%clk 0:02:12.2]} 30... Rg8 {[%clk 0:00:18.8]} 31.
Bf6 {[%clk 0:02:10.1]} 31... Rf5 {[%clk 0:00:19.1]} 32. Rhf1 {[%clk 0:02:11.2]}
32... Qb5 {[%clk 0:00:15.3]} 33. Rxf5 {[%clk 0:02:10.9]} 33... gxf5 {[%clk
0:00:17.2]} 34. Kf2 {[%clk 0:02:11.9]} 34... Bh5 {[%clk 0:00:18]} 35. Be5 {[%clk
0:02:08.4]} 35... Kd7 {[%clk 0:00:17.6]} 36. Bf4 {[%clk 0:02:08.7]} 36... Ke6
{[%clk 0:00:18.6]} 37. Rd2 {[%clk 0:02:08.5]} 37... Qc4 {[%clk 0:00:19.7]} 38.
Qd4 {[%clk 0:02:08.7]} 38... Qxd4+ {[%clk 0:00:20.4]} 39. Rxd4 {[%clk
0:02:10.6]} 39... Rb8 {[%clk 0:00:20.6]} 40. Bxb8 {[%clk 0:02:10.7]} 1-0

[Event "*** Titled Tuesday 3|2 Blitz"]
[Site "Chess.com"]
[Date "2014.12.30"]
[Round "5"]
[White "FairChess_on_YouTube"]
[Black "ameet100"]
[Result "1-0"]
[WhiteElo "2720"]
[BlackElo "2411"]
[TimeControl "180+2"]
[EndTime "12:04:10 PST"]
[Termination "FairChess_on_YouTube won by resignation"]

1. d4 {[%clk 0:03:00]} 1... d6 {[%clk 0:02:59.4]} 2. e4 {[%clk 0:02:59]} 2...
Nf6 {[%clk 0:03:00.6]} 3. Nc3 {[%clk 0:02:59.1]} 3... g6 {[%clk 0:03:01.7]} 4.
Nf3 {[%clk 0:02:58.1]} 4... Bg7 {[%clk 0:03:02]} 5. h3 {[%clk 0:02:59.2]} 5...
O-O {[%clk 0:03:03.2]} 6. Be2 {[%clk 0:02:59.9]} 6... a6 {[%clk 0:02:56.8]} 7.
a4 {[%clk 0:02:59.9]} 7... b6 {[%clk 0:02:57.5]} 8. O-O {[%clk 0:02:53.3]} 8...
e6 {[%clk 0:02:58.6]} 9. e5 {[%clk 0:02:48.4]} 9... Nfd7 {[%clk 0:02:56.4]} 10.
Bg5 {[%clk 0:02:46.1]} 10... f6 {[%clk 0:02:37.3]} 11. Bh4 {[%clk 0:02:46]}
11... Nc6 {[%clk 0:02:23.3]} 12. exd6 {[%clk 0:02:41.7]} 12... cxd6 {[%clk
0:02:24.3]} 13. d5 {[%clk 0:02:43]} 13... Nce5 {[%clk 0:02:22]} 14. dxe6 {[%clk
0:02:21.8]} 14... Nc5 {[%clk 0:02:22.9]} 15. Nxe5 {[%clk 0:02:15.8]} 15... dxe5
{[%clk 0:02:22.7]} 16. Qxd8 {[%clk 0:02:17.1]} 16... Rxd8 {[%clk 0:02:24.2]} 17.
e7 {[%clk 0:02:18.6]} 17... Re8 {[%clk 0:02:24.9]} 18. Nd5 {[%clk 0:02:19.3]}
18... g5 {[%clk 0:02:22]} 19. Nxb6 {[%clk 0:02:00.6]} 19... Rb8 {[%clk
0:02:09.9]} 20. Nxc8 {[%clk 0:02:01.6]} 20... Rexc8 {[%clk 0:02:10.5]} 21. Bg3
{[%clk 0:02:00.2]} 21... Kf7 {[%clk 0:02:09.3]} 22. Rfb1 {[%clk 0:01:52.3]}
22... a5 {[%clk 0:01:32.1]} 23. f3 {[%clk 0:01:44.6]} 23... Kxe7 {[%clk
0:00:57.2]} 24. Be1 {[%clk 0:01:45.2]} 24... Nb7 {[%clk 0:00:52.8]} 25. Bd3
{[%clk 0:01:43.7]} 25... Ke6 {[%clk 0:00:49.8]} 26. Bxh7 {[%clk 0:01:37.6]}
26... f5 {[%clk 0:00:49.6]} 27. g4 {[%clk 0:01:38.8]} 27... fxg4 {[%clk
0:00:50.8]} 28. hxg4 {[%clk 0:01:39.4]} 28... Nd6 {[%clk 0:00:50.3]} 29. Bxa5
{[%clk 0:01:35.3]} 29... e4 {[%clk 0:00:50.8]} 30. Bc3 {[%clk 0:01:18.1]} 30...
Bxc3 {[%clk 0:00:45.6]} 31. bxc3 {[%clk 0:01:19.3]} 31... Rxb1+ {[%clk
0:00:44.6]} 32. Rxb1 {[%clk 0:01:20.9]} 32... exf3 {[%clk 0:00:45.4]} 33. Kf2
{[%clk 0:01:15.7]} 33... Rxc3 {[%clk 0:00:46.5]} 34. Rb3 {[%clk 0:01:12.6]}
34... Rc4 {[%clk 0:00:45.3]} 35. Bg8+ {[%clk 0:01:12.9]} 35... Nf7 {[%clk
0:00:46.1]} 36. Rxf3 {[%clk 0:01:08.3]} 1-0

[Event "*** Titled Tuesday 3|2 Blitz"]
[Site "Chess.com"]
[Date "2014.12.30"]
[Round "5"]
[White "oggy1984"]
[Black "chessmachined"]
[Result "1-0"]
[WhiteElo "2146"]
[BlackElo "2128"]
[TimeControl "180+2"]
[EndTime "12:05:01 PST"]
[Termination "oggy1984 won by checkmate"]

1. e4 {[%clk 0:03:00]} 1... g6 {[%clk 0:02:59.1]} 2. d4 {[%clk 0:02:58]} 2... c6
{[%clk 0:03:00.4]} 3. Nc3 {[%clk 0:02:55.4]} 3... d5 {[%clk 0:03:01.4]} 4. f3
{[%clk 0:02:53.9]} 4... Bg7 {[%clk 0:03:01.7]} 5. Be3 {[%clk 0:02:54.3]} 5...
Be6 {[%clk 0:02:53.9]} 6. Qd2 {[%clk 0:02:54.7]} 6... a6 {[%clk 0:02:50.3]} 7.
Nge2 {[%clk 0:02:55.2]} 7... dxe4 {[%clk 0:02:44.6]} 8. fxe4 {[%clk 0:02:54.2]}
8... Bc4 {[%clk 0:02:36.2]} 9. O-O-O {[%clk 0:02:31.2]} 9... a5 {[%clk
0:02:25.3]} 10. e5 {[%clk 0:02:27]} 10... Nd7 {[%clk 0:01:47.3]} 11. Ng3 {[%clk
0:02:26.6]} 11... Be6 {[%clk 0:01:45.8]} 12. Bd3 {[%clk 0:02:14.6]} 12... h5
{[%clk 0:01:37.5]} 13. Nge4 {[%clk 0:02:13.4]} 13... Bf5 {[%clk 0:01:38.5]} 14.
Ng5 {[%clk 0:02:13.2]} 14... e6 {[%clk 0:01:18.7]} 15. Rdf1 {[%clk 0:02:04.2]}
15... Ne7 {[%clk 0:01:18.2]} 16. g3 {[%clk 0:01:52.2]} 16... Nb6 {[%clk
0:01:13.9]} 17. h3 {[%clk 0:01:52.4]} 17... Nbd5 {[%clk 0:00:53.5]} 18. g4
{[%clk 0:01:48.7]} 18... hxg4 {[%clk 0:00:51.6]} 19. hxg4 {[%clk 0:01:47.7]}
19... Rxh1 {[%clk 0:00:52.4]} 20. Rxh1 {[%clk 0:01:47.2]} 20... Bxg4 {[%clk
0:00:53.1]} 21. Nce4 {[%clk 0:01:31.6]} 21... Nxe3 {[%clk 0:00:50.9]} 22. Nd6+
{[%clk 0:01:24.8]} 22... Kf8 {[%clk 0:00:38.6]} 23. Ngxf7 {[%clk 0:01:08.7]}
23... Qb6 {[%clk 0:00:38.1]} 24. Qxe3 {[%clk 0:01:06.7]} 24... Nf5 {[%clk
0:00:38.8]} 25. Qg5 {[%clk 0:00:56]} 25... Bh5 {[%clk 0:00:29.7]} 26. Rxh5
{[%clk 0:00:52.5]} 26... gxh5 {[%clk 0:00:30.2]} 27. Nxf5 {[%clk 0:00:39.6]}
27... exf5 {[%clk 0:00:29.8]} 28. Qxf5 {[%clk 0:00:40.3]} 28... Qxd4 {[%clk
0:00:10.2]} 29. Ng5+ {[%clk 0:00:21.7]} 29... Ke7 {[%clk 0:00:10.5]} 30. Qf7+
{[%clk 0:00:22.1]} 30... Kd8 {[%clk 0:00:11.5]} 31. Ne6+ {[%clk 0:00:23]} 31...
Kc8 {[%clk 0:00:12.6]} 32. Qc7# {[%clk 0:00:23.7]} 1-0

[Event "*** Titled Tuesday 3|2 Blitz"]
[Site "Chess.com"]
[Date "2014.12.30"]
[Round "5"]
[White "esr44"]
[Black "vinceyoung15"]
[Result "0-1"]
[WhiteElo "1996"]
[BlackElo "1994"]
[TimeControl "180+2"]
[EndTime "12:05:27 PST"]
[Termination "vinceyoung15 won by resignation"]

1. d4 {[%clk 0:03:00]} 1... d5 {[%clk 0:02:58.5]} 2. Nf3 {[%clk 0:02:58.5]} 2...
e6 {[%clk 0:02:59.6]} 3. c4 {[%clk 0:02:58.8]} 3... Be7 {[%clk 0:02:59.3]} 4.
Nc3 {[%clk 0:02:59.8]} 4... Nf6 {[%clk 0:02:59.9]} 5. Bg5 {[%clk 0:03:00.1]}
5... h6 {[%clk 0:03:00.2]} 6. Bh4 {[%clk 0:03:00]} 6... O-O {[%clk 0:03:00.8]}
7. e3 {[%clk 0:03:00.9]} 7... b6 {[%clk 0:02:53.2]} 8. Bd3 {[%clk 0:02:58.2]}
8... Bb7 {[%clk 0:02:54.1]} 9. O-O {[%clk 0:02:57.8]} 9... Ne4 {[%clk 0:02:55]}
10. Bxe7 {[%clk 0:02:54.5]} 10... Qxe7 {[%clk 0:02:55.7]} 11. Rc1 {[%clk
0:02:52.3]} 11... Nxc3 {[%clk 0:02:43.7]} 12. Rxc3 {[%clk 0:02:51.6]} 12... c5
{[%clk 0:02:39.8]} 13. Re1 {[%clk 0:02:42.4]} 13... Rd8 {[%clk 0:02:16.8]} 14.
Qe2 {[%clk 0:02:13.9]} 14... dxc4 {[%clk 0:02:12.8]} 15. Bxc4 {[%clk 0:02:12.8]}
15... cxd4 {[%clk 0:02:03.6]} 16. exd4 {[%clk 0:02:13.6]} 16... Qf6 {[%clk
0:02:03.6]} 17. Bb3 {[%clk 0:01:38.8]} 17... Nc6 {[%clk 0:02:01.3]} 18. h3
{[%clk 0:00:44.8]} 18... Nxd4 {[%clk 0:01:55.9]} 19. Nxd4 {[%clk 0:00:45.7]}
19... Rxd4 {[%clk 0:01:56.8]} 20. Rc7 {[%clk 0:00:38.3]} 20... Be4 {[%clk
0:01:45.1]} 21. Rec1 {[%clk 0:00:26.6]} 21... Qg5 {[%clk 0:01:28.1]} 22. Rc8+
{[%clk 0:00:15.5]} 22... Rxc8 {[%clk 0:01:26.1]} 23. Rxc8+ {[%clk 0:00:16]}
23... Kh7 {[%clk 0:01:27]} 24. g3 {[%clk 0:00:09.7]} 24... f5 {[%clk 0:01:08.5]}
25. Rc7 {[%clk 0:00:06.5]} 25... Rd2 {[%clk 0:01:05.2]} 26. Qe3 {[%clk
0:00:05.2]} 26... Qxe3 {[%clk 0:00:58]} 27. fxe3 {[%clk 0:00:07.1]} 27... Rg2+
{[%clk 0:00:59]} 28. Kf1 {[%clk 0:00:08.5]} 28... Rxg3 {[%clk 0:01:00.3]} 29.
Bxe6 {[%clk 0:00:09.2]} 29... Rxe3 {[%clk 0:01:00]} 30. Bb3 {[%clk 0:00:08.6]}
30... a5 {[%clk 0:00:56.4]} 31. h4 {[%clk 0:00:09.5]} 31... Kg6 {[%clk
0:00:55.5]} 32. Bf7+ {[%clk 0:00:09.1]} 32... Kf6 {[%clk 0:00:55.7]} 33. Bb3
{[%clk 0:00:08.4]} 33... g5 {[%clk 0:00:54.2]} 34. Rf7+ {[%clk 0:00:08.9]} 34...
Ke5 {[%clk 0:00:54.7]} 35. Re7+ {[%clk 0:00:10.2]} 35... Kf4 {[%clk 0:00:55.6]}
36. hxg5 {[%clk 0:00:10]} 36... hxg5 {[%clk 0:00:56.2]} 37. Rf7 {[%clk
0:00:09.9]} 37... g4 {[%clk 0:00:56.8]} 38. Be6 {[%clk 0:00:10.1]} 38... g3
{[%clk 0:00:57.5]} 39. a3 {[%clk 0:00:07.8]} 39... g2+ {[%clk 0:00:58.6]} 40.
Kf2 {[%clk 0:00:09]} 40... Rg3 {[%clk 0:00:58.6]} 41. Kg1 {[%clk 0:00:07.6]}
41... Rh3 {[%clk 0:00:58.3]} 42. Rg7 {[%clk 0:00:05.6]} 42... Rh1+ {[%clk
0:00:58.3]} 43. Kf2 {[%clk 0:00:07.1]} 43... Rf1+ {[%clk 0:00:59.2]} 44. Ke2
{[%clk 0:00:08.2]} 44... g1=Q {[%clk 0:01:00]} 0-1

[Event "*** Titled Tuesday 3|2 Blitz"]
[Site "Chess.com"]
[Date "2014.12.30"]
[Round "5"]
[White "Dr-Bassem"]
[Black "pKiLz5Rn9b"]
[Result "0-1"]
[WhiteElo "2346"]
[BlackElo "2176"]
[TimeControl "180+2"]
[EndTime "12:05:33 PST"]
[Termination "pKiLz5Rn9b won by resignation"]

1. e4 {[%clk 0:03:00]} 1... e6 {[%clk 0:02:58.6]} 2. d3 {[%clk 0:03:00.7]} 2...
d5 {[%clk 0:02:59.8]} 3. Nd2 {[%clk 0:03:02.1]} 3... Nf6 {[%clk 0:03:01]} 4.
Ngf3 {[%clk 0:03:03.2]} 4... Be7 {[%clk 0:03:01.1]} 5. g3 {[%clk 0:03:04.2]}
5... b5 {[%clk 0:03:02.5]} 6. Bg2 {[%clk 0:03:04]} 6... c5 {[%clk 0:03:01.4]} 7.
O-O {[%clk 0:03:04.4]} 7... Nc6 {[%clk 0:03:02.5]} 8. Re1 {[%clk 0:03:05.6]}
8... O-O {[%clk 0:03:03]} 9. e5 {[%clk 0:03:05.8]} 9... Ne8 {[%clk 0:03:03.4]}
10. Nf1 {[%clk 0:03:06.1]} 10... b4 {[%clk 0:03:04.4]} 11. h4 {[%clk 0:03:06.7]}
11... a5 {[%clk 0:03:05.6]} 12. N1h2 {[%clk 0:03:05.5]} 12... a4 {[%clk
0:03:06.6]} 13. a3 {[%clk 0:02:26.4]} 13... Nc7 {[%clk 0:03:04.5]} 14. Bf4
{[%clk 0:02:17.7]} 14... Nb5 {[%clk 0:03:04.8]} 15. Qd2 {[%clk 0:01:47]} 15...
Qa5 {[%clk 0:03:03.9]} 16. axb4 {[%clk 0:01:38.2]} 16... cxb4 {[%clk 0:03:02.8]}
17. Bg5 {[%clk 0:01:37.5]} 17... a3 {[%clk 0:02:52.1]} 18. Ng4 {[%clk
0:01:37.4]} 18... Qd8 {[%clk 0:02:48.5]} 19. Qf4 {[%clk 0:01:34.8]} 19... Bb7
{[%clk 0:02:31.7]} 20. bxa3 {[%clk 0:01:33.9]} 20... bxa3 {[%clk 0:02:31.9]} 21.
Bf6 {[%clk 0:01:32.2]} 21... Kh8 {[%clk 0:02:05.2]} 22. Bxg7+ {[%clk 0:01:08.6]}
22... Kxg7 {[%clk 0:02:04.4]} 23. Qh6+ {[%clk 0:01:09.8]} 23... Kh8 {[%clk
0:02:05.2]} 24. Ng5 {[%clk 0:01:07.3]} 24... Bxg5 {[%clk 0:02:04.9]} 25. hxg5
{[%clk 0:01:09.2]} 25... Rg8 {[%clk 0:01:58.2]} 26. Nf6 {[%clk 0:01:09.9]} 26...
Rg7 {[%clk 0:01:58.4]} 27. Bf3 {[%clk 0:01:03.6]} 27... Ncd4 {[%clk 0:01:54.8]}
28. Bg4 {[%clk 0:01:02.2]} 28... Nxc2 {[%clk 0:01:10]} 29. Kg2 {[%clk
0:01:01.3]} 29... Nxe1+ {[%clk 0:01:11]} 30. Rxe1 {[%clk 0:01:03.2]} 30... d4+
{[%clk 0:01:12.5]} 31. f3 {[%clk 0:01:03.9]} 31... Qa5 {[%clk 0:01:06.4]} 32.
Rd1 {[%clk 0:00:27.7]} 32... a2 {[%clk 0:01:04.4]} 33. g6 {[%clk 0:00:09.4]}
33... a1=Q {[%clk 0:00:41.9]} 34. Rxa1 {[%clk 0:00:09.4]} 34... Qxa1 {[%clk
0:00:42.4]} 35. Bh5 {[%clk 0:00:04.1]} 35... Ra2+ {[%clk 0:00:40.5]} 36. Kh3
{[%clk 0:00:05.1]} 36... Qh1+ {[%clk 0:00:39.3]} 37. Kg4 {[%clk 0:00:06.2]}
37... Qxf3+ {[%clk 0:00:36.6]} 0-1

[Event "*** Titled Tuesday 3|2 Blitz"]
[Site "Chess.com"]
[Date "2014.12.30"]
[Round "5"]
[White "Bigc08"]
[Black "ChessWarrior7197"]
[Result "0-1"]
[WhiteElo "1985"]
[BlackElo "1999"]
[TimeControl "180+2"]
[EndTime "12:05:37 PST"]
[Termination "ChessWarrior7197 won on time"]

1. e4 {[%clk 0:03:00]} 1... e5 {[%clk 0:02:58.7]} 2. Nf3 {[%clk 0:03:01.1]} 2...
Nc6 {[%clk 0:03:00]} 3. Bb5 {[%clk 0:03:02.4]} 3... Nf6 {[%clk 0:03:00.6]} 4.
O-O {[%clk 0:03:02.6]} 4... Nxe4 {[%clk 0:03:01]} 5. d4 {[%clk 0:03:00.6]} 5...
Nd6 {[%clk 0:03:01.8]} 6. Bxc6 {[%clk 0:03:01.4]} 6... dxc6 {[%clk 0:03:02.8]}
7. Nxe5 {[%clk 0:02:59.6]} 7... Be7 {[%clk 0:03:03.2]} 8. Nc3 {[%clk 0:02:56.1]}
8... O-O {[%clk 0:03:03.2]} 9. Bf4 {[%clk 0:02:56.7]} 9... Nf5 {[%clk
0:02:53.8]} 10. Ne2 {[%clk 0:02:52.7]} 10... Bf6 {[%clk 0:02:50]} 11. Qd3 {[%clk
0:02:51.7]} 11... g6 {[%clk 0:02:48.1]} 12. Rad1 {[%clk 0:02:45.9]} 12... Bg7
{[%clk 0:02:45.4]} 13. Qd2 {[%clk 0:02:32.1]} 13... Re8 {[%clk 0:02:42.6]} 14.
Ng3 {[%clk 0:02:31.1]} 14... Nxg3 {[%clk 0:02:38]} 15. hxg3 {[%clk 0:02:32]}
15... Bf5 {[%clk 0:02:39]} 16. c3 {[%clk 0:02:30.9]} 16... h5 {[%clk 0:02:35]}
17. Nc4 {[%clk 0:02:24.8]} 17... h4 {[%clk 0:02:31.2]} 18. Bg5 {[%clk
0:02:17.9]} 18... Bf6 {[%clk 0:02:12.7]} 19. Bxf6 {[%clk 0:02:15.8]} 19... Qxf6
{[%clk 0:02:12.3]} 20. Qf4 {[%clk 0:02:08.3]} 20... hxg3 {[%clk 0:01:51.9]} 21.
Qxg3 {[%clk 0:02:04.7]} 21... Qe7 {[%clk 0:01:50.8]} 22. Ne5 {[%clk 0:02:03.9]}
22... Kg7 {[%clk 0:01:50]} 23. Rfe1 {[%clk 0:02:02.6]} 23... Qd6 {[%clk
0:01:47.7]} 24. f4 {[%clk 0:01:48.4]} 24... Rad8 {[%clk 0:01:46.7]} 25. Kf2
{[%clk 0:01:36.5]} 25... c5 {[%clk 0:01:42.8]} 26. Qf3 {[%clk 0:01:26.3]} 26...
cxd4 {[%clk 0:01:41.9]} 27. Rxd4 {[%clk 0:01:27]} 27... Qb6 {[%clk 0:01:43]} 28.
Nc4 {[%clk 0:01:18.4]} 28... Qc5 {[%clk 0:01:38]} 29. Rxe8 {[%clk 0:01:15.7]}
29... Rxe8 {[%clk 0:01:38.6]} 30. Ne3 {[%clk 0:01:16.6]} 30... Be6 {[%clk
0:01:33.1]} 31. Qxb7 {[%clk 0:01:11.8]} 31... Bxa2 {[%clk 0:01:30.7]} 32. Qf3
{[%clk 0:01:01]} 32... a5 {[%clk 0:01:25.2]} 33. f5 {[%clk 0:01:01]} 33... Qb6
{[%clk 0:01:21.7]} 34. fxg6 {[%clk 0:00:58.5]} 34... fxg6 {[%clk 0:01:18.6]} 35.
Rd7+ {[%clk 0:00:59.4]} 35... Kg8 {[%clk 0:01:19.9]} 36. Qe2 {[%clk 0:00:44.2]}
36... Be6 {[%clk 0:01:11.4]} 37. Rd4 {[%clk 0:00:38.9]} 37... c5 {[%clk
0:01:05.9]} 38. Rf4 {[%clk 0:00:34.6]} 38... Qd6 {[%clk 0:01:03.3]} 39. Rf6
{[%clk 0:00:08.1]} 39... Kg7 {[%clk 0:01:03.2]} 40. Rf3 {[%clk 0:00:02.4]} 40...
Bg4 {[%clk 0:00:57.9]} 0-1